Cogmind - Beta 14 @@@ ROGUE MODE // 2025.04.24 @ 19:27:52 Player: winnking222 Result: Destroyed by XW-1X0(R) with Subdweller Laser Performance ------------- Evolutions (0) 0 Regions Visited (2) 400 Robots Destroyed (32) 160 Value Destroyed (849) 849 Prototype IDs (0) 0 Alien Tech Used (0) 0 Bonus (0) 0 TOTAL SCORE: 1409 Bonus ------- None Cogmind --------- Core Integrity 0/250 Matter 288/400 Energy 200/200 System Corruption 0% Temperature Cool (6) Movement Walking (330) Ox3 Location -10/Subcaves Parts ------- > --- POWER (1) -------- Subdweller Power Source > --- PROPULSION (2) --- Aluminum Leg Subdweller Monowheel > --- UTILITY (2) ------ Large Storage Unit Medium Matter Pod > --- WEAPON (2) ------- Subdweller Machine Gun Battle Cannon > --- INVENTORY (15) --- Subdweller Monowheel Subdweller Optics Seismic Detector Makeshift Hacking Suite Rainbow Chip Subdweller Beam Cannon Battle Rifle Subdweller Machine Gun Subdweller Machine Gun Battle Cannon Mining Laser Peak State ------------ > --- POWER ------------ Subdweller Power Source > --- PROPULSION ------- Aluminum Leg Subdweller Monowheel > --- UTILITY ---------- Large Storage Unit Medium Matter Pod > --- WEAPON ----------- Subdweller Machine Gun Battle Cannon > --- INVENTORY -------- Subdweller Power Source Subdweller Power Source Subdweller Optics Seismic Detector Makeshift Hacking Suite Rainbow Chip Subdweller Beam Cannon Battle Rifle Subdweller Machine Gun Subdweller Machine Gun Battle Cannon Mining Laser [Rating: 14] Favorites ----------- Power Light Ion Engine Engine Light Ion Engine Propulsion Light Treads Treads Light Treads Leg Aluminum Leg Wheel Subdweller Monowheel Utility Large Storage Unit Storage Large Storage Unit Protection Light Armor Plating Weapon Battle Cannon Ballistic Gun Subdweller Machine Gun Ballistic Cannon Battle Cannon Build | -11 -10 -10 ------- Run | Yrd Mat Sub Slots Evolved . | . . . Power . | . . . Propulsion . | . . . Utility . | . . . Weapon . | . . . Parts Attached 26 | 6 6 14 Power 6 | 1 2 3 Engine 6 | 1 2 3 Core . | . . . Reactor . | . . . Propulsion 7 | 2 1 4 Treads 3 | 2 1 . Leg 2 | . . 2 Wheel 2 | . . 2 Hover . | . . . Flight . | . . . Utility 4 | 1 2 1 Device . | . . . Storage 3 | 1 1 1 Processor . | . . . Hackware . | . . . Protection 1 | . 1 . Artifact . | . . . Weapon 9 | 2 1 6 Energy Gun . | . . . Energy Cannon . | . . . Ballistic Gun 7 | 2 1 4 Ballistic Cannon 2 | . . 2 Launcher . | . . . Special Weapon . | . . . Impact Weapon . | . . . Slashing Weapon . | . . . Piercing Weapon . | . . . Special Melee Weapon . | . . . Unidentified Prototypes . | . . . Parts Lost 10 | . 4 6 Power 2 | . 2 . Propulsion 5 | . 1 4 Utility 1 | . . 1 Weapon 2 | . 1 1 Highest Loss Streak 5 | . 2 5 To Critical Strikes . | . . . Average Slot Usage (%) 99 | . 98 99 Engine 13 | . 13 14 Treads 17 | . 27 14 Leg 8 | . . 11 Wheel 1 | . . 2 Storage 18 | . 26 16 Protection 9 | . 1 11 Ballistic Gun 17 | . 28 14 Ballistic Cannon 10 | . . 13 Peak Build Rating 14 | 6 8 14 Average Rating 9 | 5 7 10 On Entrance 4 | . 6 7 Naked Turns . | . . . Heaviest Build 35 | 11 31 35 Greatest Support 40 | 40 40 40 Greatest Overweight (x) 3 | . . 3 Average Overweight (x) . | . . . Largest Inventory Capacity 15 | 8 15 15 Average Capacity 14 | 6 14 15 Most Carried 15 | 5 11 15 Average Carried 11 | 3 7 13 Final Capacity 15 | 8 15 15 Final Carried 11 | 5 9 11 Class Distribution -------------------- 88% | Mutant 11% | Scavenger-Mutant Dominant Class ---------------- Mutant | -10/Materials Mutant | -10/Subcaves Resources | -11 -10 -10 ----------- Run | Yrd Mat Sub Matter Collected 1096 | 268 344 484 Remotely . | . . . Salvage Created 994 | 56 574 364 Parts 65 | 2 36 27 Haulers Intercepted 1 | . 1 . Recyclers Shooed 1 | . 1 . Parts Field Recycled . | . . . Retrieved Matter . | . . . Parts Self-Destructed 22 | . . 22 Prevented . | . . . Kills | -11 -10 -10 ------- Run | Yrd Mat Sub Combat Hostiles Destroyed 26 | . 15 11 Guns 20 | . 15 5 Cannons 6 | . . 6 Classes Destroyed 9 | 1 6 2 Worker 2 | . 2 . Builder 1 | . 1 . Hauler 1 | . 1 . Recycler 1 | 1 . . Operator 1 | . 1 . Swarmer 6 | . 6 . Grunt 10 | . 9 1 Sentry 1 | . . 1 Subdweller 9 | . . 9 Best Kill Streak 6 | 1 6 3 Combat Bots Only 3 | . 3 3 Max Kills in Single Turn 1 | 1 1 1 Gunslinging . | . . . Exploded . | . . . Melee . | . . . Uniques/NPCs Destroyed . | . . . Combat | -11 -10 -10 -------- Run | Yrd Mat Sub Hostile Shots Fired 201 | . 108 93 Missed 74 | . 39 35 Damage Taken 1840 | . 786 1054 Core 268 | . 136 132 Absorbed by Shields . | . . . Core Remaining (%) 100 | 100 . . Volleys Fired 143 | 2 68 73 Largest 2 | 2 2 2 Hottest 69 | 40 40 69 Shots Fired 284 | 4 136 144 Gun 212 | 4 136 72 Cannon 72 | . . 72 Launcher . | . . . Special . | . . . Kinetic 284 | 4 136 144 Thermal . | . . . Explosive . | . . . Electromagnetic . | . . . Robot Hit Streak 16 | 4 15 16 Robot Miss Streak 9 | . 9 3 Penetration Max . | . . . Secondary Targets 4 | . 4 . Max Gunslinging Chain 1 | . 1 . Shots Hit Robots 146 | 4 81 61 Core Hits 63 | 2 37 24 Critical Kills 2 | . 2 . Critical Parts Destroyed 2 | . 2 . Critical Strikes 5 | . 4 1 Destroy 5 | . 4 1 Melee Attacks . | . . . Impact . | . . . Slashing . | . . . Piercing . | . . . Sneak Attacks . | . . . Combat Hostiles . | . . . Follow-up Attacks . | . . . Damage Inflicted 2054 | 42 874 1138 Guns 1450 | 42 864 544 Cannons 594 | . . 594 Explosions . | . . . Melee . | . . . Ramming 10 | . 10 . Kinetic 2044 | 42 864 1138 Thermal . | . . . Explosive . | . . . Electromagnetic . | . . . Impact . | . . . Slashing . | . . . Piercing . | . . . Highest Corruption . | . . . Average Corruption . | . . . Corruption Purged . | . . . Corruption Blocked . | . . . Overload Shots . | . . . Overflow Damage . | . . . Projectiles . | . . . Explosions . | . . . Melee . | . . . Knockbacks 4 | . . 4 Impact . | . . . Kinetic 4 | . . 4 Secondary . | . . . Self-Inflicted Damage . | . . . Shots . | . . . Rammed 1 | . 1 . Targets Rammed 1 | . 1 . Kicked . | . . . Crushed . | . . . Highest Temperature 19 | . 19 4 Average Temperature 7 | . 7 4 Received Heat Transfer 510 | . 252 258 Siege Activations . | . . . Robots Corrupted . | . . . Combat Hostiles . | . . . Parts Fried . | . . . Impact Corruptions . | . . . Robots Melted . | . . . Combat Hostiles . | . . . Parts Melted 1 | . . 1 Heat Transferred . | . . . Parts Sabotaged . | . . . Parts Stolen . | . . . Parts Stripped . | . . . Power Chain Reactions . | . . . Alert | -11 -10 -10 ------- Run | Yrd Mat Sub Peak Influence 310 | 5 310 . Initial 3 | . 3 . Average 175 | 1 194 . Maximum Alert Level 1 | . 1 . Low Security (%) 51 | 100 46 . Level 1 48 | . 53 . Level 2 . | . . . Level 3 . | . . . Level 4 . | . . . Level 5 . | . . . High Security . | . . . Max Security . | . . . Squads Dispatched 3 | . 3 . Investigation 1 | . 1 . Extermination . | . . . Reinforcement 2 | . 2 . Assault . | . . . Garrison . | . . . Intercept . | . . . Searches Triggered . | . . . Construction Impeded . | . . . Haulers Reinforced . | . . . Active Scanning Responses . | . . . Cargo Convoy Interrupts . | . . . Stealth | -11 -10 -10 --------- Run | Yrd Mat Sub Distress Signals 5 | . 5 . Communications Jammed . | . . . Distress Signals . | . . . Times Spotted 51 | . 33 18 Peak Tracking Total 6 | . 6 4 Tactical Retreats 6 | . 5 1 Traps | -11 -10 -10 ------- Run | Yrd Mat Sub Traps Triggered 3 | . 3 . Indirectly . | . . . Trap Hack Attempts . | . . . Triggered . | . . . Disarmed . | . . . Reprogrammed . | . . . Reused . | . . . Traps Extracted . | . . . Installed . | . . . Triggered . | . . . Machines | -11 -10 -10 ---------- Run | Yrd Mat Sub Machines Disabled . | . . . Max in Single Turn . | . . . Machines Repaired . | . . . Machines Dismantled . | . . . Machines Sabotaged . | . . . Overloaded Fab Kills . | . . . Hacking | -11 -10 -10 --------- Run | Yrd Mat Sub Machines Accessed . | . . . Terminals . | . . . Fabricators . | . . . Repair Stations . | . . . Recycling Units . | . . . Scanalyzers . | . . . Garrison Access . | . . . Total Hacks . | . . . Successful . | . . . Failed . | . . . Catastrophic . | . . . Database Lockouts . | . . . Manual . | . . . Terminals . | . . . Fabricators . | . . . Repair Stations . | . . . Recycling Units . | . . . Scanalyzers . | . . . Garrison Access . | . . . Terminal Hacks . | . . . Fabricator Hacks . | . . . Repair Station Hacks . | . . . Recycling Unit Hacks . | . . . Scanalyzer . | . . . Garrison Access Hacks . | . . . Unauthorized Hacks . | . . . Terminals . | . . . Fabricators . | . . . Repair Stations . | . . . Recycling Units . | . . . Scanalyzers . | . . . Garrison Access . | . . . Data Cores Recovered . | . . . Used . | . . . Hacking Detections . | . . . Full Trace Events . | . . . Feedback Events . | . . . Feedback Blocked . | . . . Robot Schematics Acquired . | . . . Robots Built . | . . . Authchips . | . . . Time . | . . . Total Robot Build Rating . | . . . Part Schematics Acquired . | . . . Parts Built . | . . . Authchips . | . . . Time . | . . . Total Part Build Rating . | . . . Parts Repaired . | . . . Time . | . . . Parts Recycled . | . . . Recycled Matter . | . . . Retrieved Matter . | . . . Retrieved Components . | . . . Parts Scanalyzed . | . . . Part Schematics Acquired . | . . . Parts Damaged . | . . . Bothacking | -11 -10 -10 ------------ Run | Yrd Mat Sub Used RIF Installer . | . . . Robots Hacked . | . . . Non-combat . | . . . Combat . | . . . Robot Hacks Applied . | . . . Relay Couplers Released . | . . . Fabnet Peak Effective % . | . . . Robots Rewired . | . . . Allies Hacked . | . . . Hacks Repelled . | . . . Allies | -11 -10 -10 -------- Run | Yrd Mat Sub Total Allies . | . . . Largest Group . | . . . Highest-Rated Group . | . . . Highest-Rated Ally . | . . . Total Orders . | . . . Ally Attacks . | . . . Total Damage . | . . . Kills . | . . . Allies Corrupted . | . . . Allies Melted . | . . . Intel | -11 -10 -10 ------- Run | Yrd Mat Sub Robot Analysis Total . | . . . Derelict Logs Recovered 2 | . . 2 Drone Launches . | . . . Drone Recoveries . | . . . Exploration | -11 -10 -10 ------------- Run | Yrd Mat Sub Turns Passed 3814 | 98 897 2819 Spaces Moved 1604 | 55 427 1122 Core 10 | 10 . . Treads 1416 | 45 427 944 Legs 80 | . . 80 Wheels 98 | . . 98 Hover . | . . . Flight . | . . . Fastest Speed 50 | 50 160 120 Average Speed 198 | 140 160 215 Slowest Speed 330 | 160 160 330 Overloaded Moves . | . . . Propulsion Burnouts . | . . . Robots Hopped . | . . . Cave-ins Triggered . | . . . Exploration Rate (%) 53 | 4 85 72 Regions Visited 2 Branch Regions 1 Pre-discovered Areas 2 | . . 2 Known Exits Taken . | . . . Unknown Exits Taken 2 | 1 1 . Scrap Searched . | . . . Spaces Dug 1 | . . 1 Terrain Destroyed 4 | . . 4 Melee . | . . . Projectile 4 | . . 4 AOE . | . . . Terrain Rammed . | . . . Walls Destroyed . | . . . Machines Disabled . | . . . Actions | -11 -10 -10 --------- Run | Yrd Mat Sub Total 1978 | 73 520 1385 Wait 160 | . 10 150 Move 1602 | 54 426 1122 Hop . | . . . Pick Up 36 | 11 9 16 Fast Attach . | . . . Attach 17 | 6 5 6 Detach . | . . . Swap 9 | . 1 8 Drop 10 | . . 10 Fire 143 | 2 68 73 Melee . | . . . Ram . | . . . Kick . | . . . Crush 1 | . 1 . Escape Stasis . | . . . Rewire . | . . . Trap . | . . . Miscellaneous . | . . . Route ------- -11/Scrapyard -10/Materials (discovered 4 exits: [*Mat x2] / [*Min] / [*Sub]) -10/Subcaves (discovered 3 exits: [*Mat x2] / [*Rec]) History --------- Turn | Location | Event 10 | -11/Scrapyard | Discovered new exit (range 16) 99 | -11/Scrapyard | Entered Materials 303 | -10/Materials | Build established: Mutant 324 | -10/Materials | Discovered new exit (range 15) 579 | -10/Materials | Discovered new exit (range 13) 970 | -10/Materials | Core integrity fell below 50% 979 | -10/Materials | Discovered new exit (range 6) 992 | -10/Materials | Discovered new exit (range 3) 996 | -10/Materials | Entered Subcaves 997 | -10/Subcaves | Shifting Twisted Machinery released Battle Cannon 998 | -10/Subcaves | Shifting Twisted Machinery released Mak. Hacking Suite 1131 | -10/Subcaves | A swath of the cavern ceiling suddenly collapsed 1206 | -10/Subcaves | A swath of the cavern ceiling suddenly collapsed 1627 | -10/Subcaves | Discovered new exit (range 12) 1643 | -10/Subcaves | Learned location of Zion (-6) 2121 | -10/Subcaves | Discovered new exit (range 10) 2503 | -10/Subcaves | Shifting Twisted Machinery released Sub. Laser 2506 | -10/Subcaves | Shifting Twisted Machinery released Riot Gun 2679 | -10/Subcaves | Discovered new exit (range 9) 3348 | -10/Subcaves | Learned location of 1 exit from Materials 3376 | -10/Subcaves | A Subdweller sparked back to life 3376 | -10/Subcaves | A Subdweller sparked back to life 3376 | -10/Subcaves | A Subdweller sparked back to life 3396 | -10/Subcaves | Core integrity fell below 20% 3421 | -10/Subcaves | Found Prototype Processor 3431 | -10/Subcaves | Lost 5 parts (3n1u1w) 3468 | -10/Subcaves | Met a Zionite searching for "candidates" 3691 | -10/Subcaves | Build established: Scavenger-Mutant 3815 | -10/Subcaves | Destroyed by XW-1X0(R) with Subdweller Laser Last Messages --------------- 03419_ Acquired 44 matter. 03421_ Acquired Prototype Processor. 03422_ Acquired 41 matter. 03423_ Acquired 1 matter. 03426_ Acquired 2 matter. 03432_ Acquired 3 matter. 03434_ Dropped Broken Sub. Power Source. 03451_ NP-Z7J(z): "She is not going to be happy we haven't found any suitable candidates yet." 03468_ NP-Z7J(z): "Hey you! It's really dangerous down here, I feel that you could die at any moment. For your health and safety might I suggest a trip to Zion?" World map confirmed: -6/Zion. 03474_ Acquired 38 matter. 03530_ Sub. Monowheel shoots sparks and powers down. 03574_ Sub. Power Source shoots sparks and powers down. 03575_ Dropped Broken Sub. Power Source. 03632_ Subatomizers dissect the Sub. Monowheel. 03648_ Acquired Sub. Monowheel. 03804_ XW-1X0(R) knocked back. Map ----- +----------------------------------------------------+ | | | | | | | | | | | ?????????????????????????????????????????????????? | | ?????????????????????????????????????????????????? | | ?????????????????????????????????????????????????? | | ?????????????????????????????????????????????????? | | ?????????????????????????????????????????????????? | | ?????????????????????????????????????????????????? | | ?????????????????????????????????????????????????? | | ?????????????????????????????????????????????????? | | ?????????????????????????????????????????????????? | | ?????????????????????????????????????????????????? | | ?????????????????????????????????????????????????? | | ????????????????????????????????#????????????????? | | ??#######??????????????????????<